fUSD/lending_fUSD_20260603
["ID","MTS","AMOUNT","RATE_DAILY","PERIOD"]
[423775677,1780417839000,-169.49292774,0.00010595,7]
[423775674,1780417839000,-1778.22,0.00010529,2]
[423775675,1780417839000,-2000.0,0.00010592,2]
[423775680,1780417839000,-2184726.14377005,0.000107,2]
[423775671,1780417839000,-449.01347115,0.00010515,2]
[423775679,1780417839000,-392.86595728,0.0001069,2]
[423775618,1780417839000,-158.68433998,0.00010237,2]
[423775658,1780417839000,-150.59932888,0.00010384,2]
[423775650,1780417839000,-158.68433998,0.00010352,2]
[423775666,1780417839000,-166.66,0.00010476,2]
[423775642,1780417839000,-158.68433998,0.00010321,2]
[423775619,1780417839000,-158.68433998,0.00010247,2]
[423775646,1780417839000,-158.68433998,0.00010331,2]
[423775621,1780417839000,-150.0,0.00010261,2]
[423775622,1780417839000,-150.0,0.00010268,2]
[423775626,1780417839000,-392.86595728,0.0001028,2]
[423775620,1780417839000,-158.68433998,0.00010258,2]
[423775623,1780417839000,-158.68433998,0.00010268,2]
[423775624,1780417839000,-1778.22,0.00010278,2]
[423775625,1780417839000,-158.68433998,0.00010279,2]
[423775627,1780417839000,-193.0,0.00010281,2]
[423775628,1780417839000,-500.0,0.00010281,2]
[423775629,1780417839000,-300.0,0.00010281,2]
[423775630,1780417839000,-150.0,0.00010285,2]
[423775631,1780417839000,-153.2628646,0.00010289,2]
[423775616,1780417839000,-150.0,0.00010231,2]
[423775654,1780417839000,-150.0,0.00010384,2]
[423775647,1780417839000,-150.0,0.00010334,2]
[423775636,1780417839000,-587.0,0.00010293,2]
[423775653,1780417839000,-158.68433998,0.00010373,2]
[423775643,1780417839000,-150.0,0.00010322,2]
[423775641,1780417839000,-158.68433998,0.0001031,2]
[423775634,1780417839000,-1500000.0,0.0001029,2]
[423775639,1780417839000,-150.0,0.00010297,2]
[423775638,1780417839000,-433.0,0.00010293,2]
[423775635,1780417839000,-150.0,0.00010292,2]
[423775637,1780417839000,-2351.0,0.00010293,2]
[423775632,1780417839000,-158.68433998,0.00010289,2]
[423775633,1780417839000,-150.0,0.00010289,2]
[423775640,1780417839000,-158.68433998,0.000103,2]
[423775775,1780417840000,-736.0,0.00011323,2]
[423775761,1780417840000,-300.0,0.00011147,2]
[423775769,1780417840000,-157.61,0.00011233,2]
[423775766,1780417840000,-169.49292774,0.00011218,7]
[423775764,1780417840000,-500.0,0.00011178,2]
[423775752,1780417840000,-12741.43284575,0.00011099,2]
[423775756,1780417840000,-12741.43284575,0.00011099,2]
[423775754,1780417840000,-12741.43284575,0.00011099,2]
[423775751,1780417840000,-12741.43284575,0.00011099,2]
[423775758,1780417840000,-166.66,0.00011105,2]
[423775749,1780417840000,-12741.43284575,0.00011099,2]
[423775748,1780417840000,-12741.43284575,0.00011099,2]
[423775773,1780417840000,-3292.0,0.00011323,2]
[423775763,1780417840000,-666.0,0.00011147,2]
[423775770,1780417840000,-823.0,0.00011323,2]
[423775811,1780417840000,-4609.0,0.00012455,2]
[423775778,1780417840000,-3679.63438657,0.00011537,2]
[423775780,1780417840000,-160.0,0.00011545,2]
[423775790,1780417840000,-432.0,0.00011781,2]
[423775782,1780417840000,-212.097519,0.00011545,2]
[423775784,1780417840000,-264.195038,0.00011545,2]
[423775788,1780417840000,-169.49292774,0.00011634,7]
[423775786,1780417840000,-186.51,0.00011549,2]
[423775792,1780417840000,-2000.0,0.00011916,2]
[423775794,1780417840000,-2741.67,0.00011975,2]
[423775796,1780417840000,-4279.19,0.00012055,2]
[423775798,1780417840000,-9999.99,0.00012087,2]
[423775809,1780417840000,-1252.0,0.00012454,2]
[423775812,1780417840000,-5537.42957938,0.00012543,2]
[423775747,1780417840000,-12741.43284575,0.00011099,2]
[423775776,1780417840000,-3510.45893966,0.000114,2]
[423775745,1780417840000,-12741.43284575,0.00011099,2]
[423775683,1780417840000,-804.997936,0.000107,2]
[423775743,1780417840000,-12741.43284575,0.00011099,2]
[423775813,1780417840000,-1004.66495706,0.00012544,2]
[423775682,1780417840000,-804.997936,0.000107,2]
[423775684,1780417840000,-804.997936,0.000107,2]
[423775685,1780417840000,-500.0,0.00010738,2]
[423775687,1780417840000,-175.09468095,0.00010767,2]
[423775698,1780417840000,-169.49292774,0.00010907,7]
[423775700,1780417840000,-150.0,0.00010959,2]
[423775702,1780417840000,-150.0,0.00010959,2]
[423775706,1780417840000,-1024.0,0.00011003,2]
[423775688,1780417840000,-1778.22,0.00010779,2]
[423775690,1780417840000,-166.66,0.00010791,2]
[423775704,1780417840000,-151.0,0.00010959,2]
[423775692,1780417840000,-3679.63438659,0.000109,2]
[423775710,1780417840000,-1778.22,0.0001103,2]
[423775742,1780417840000,-12741.43284584,0.00011099,2]
[423775708,1780417840000,-348.2926826,0.00011012,2]
[423775711,1780417840000,-300.0,0.00011098,2]
[423775696,1780417840000,-339.0,0.00010904,2]
[423775716,1780417840000,-666.0,0.00011098,2]
[423775714,1780417840000,-300.0,0.00011098,2]
[423775717,1780417840000,-20345.91504097,0.00011099,2]
[423775723,1780417840000,-20345.9150409,0.00011099,2]
[423775719,1780417840000,-20345.9150409,0.00011099,2]
[423775721,1780417840000,-20345.9150409,0.00011099,2]
[423775725,1780417840000,-20345.9150409,0.00011099,2]
[423775731,1780417840000,-20345.9150409,0.00011099,2]
[423775728,1780417840000,-20345.9150409,0.00011099,2]
[423775733,1780417840000,-20345.9150409,0.00011099,2]
[423775736,1780417840000,-20345.9150409,0.00011099,2]
[423775739,1780417840000,-20345.9150409,0.00011099,2]
[423775694,1780417840000,-3679.63438657,0.000109,2]
[423775808,1780417840000,-175.83509698,0.00012329,2]
[423775864,1780417840000,-189.69740348,0.00013467,7]
[423775799,1780417840000,-1396.54,0.00012087,2]
[423775850,1780417840000,-500.0,0.0001315,2]
[423775849,1780417840000,-500.0,0.0001315,2]
[423775848,1780417840000,-500.0,0.0001315,2]
[423775847,1780417840000,-500.0,0.0001315,2]
[423775856,1780417840000,-560.24025674,0.00013208,2]
[423775859,1780417840000,-175.83509698,0.00013397,2]
[423775857,1780417840000,-2000.0,0.0001324,2]
[423775852,1780417840000,-500.0,0.0001315,2]
[423775853,1780417840000,-500.0,0.0001315,2]
[423775851,1780417840000,-500.0,0.0001315,2]
[423775855,1780417840000,-1024.0,0.00013203,2]
[423775860,1780417840000,-164.0,0.000134,2]
[423775862,1780417840000,-1589.0,0.000134,2]
[423775872,1780417840000,-500.0,0.00013698,2]
[423775846,1780417840000,-500.0,0.0001315,2]
[423775873,1780417840000,-500.0,0.00013698,2]
[423775875,1780417840000,-500.0,0.00013698,2]
[423775861,1780417840000,-164.0,0.000134,2]
[423775868,1780417840000,-723.99229291,0.00013698,2]
[423775865,1780417840000,-3679.63438657,0.00013555,2]
[423775870,1780417840000,-500.0,0.00013698,2]
[423775867,1780417840000,-579.24190369,0.00013698,2]
[423775863,1780417840000,-556.6760167,0.00013467,7]
[423775869,1780417840000,-500.0,0.00013698,2]
[423775874,1780417840000,-500.0,0.00013698,2]
[423775877,1780417840000,-500.0,0.00013698,2]
[423775880,1780417840000,-500.0,0.00013698,2]
[423775879,1780417840000,-500.0,0.00013698,2]
[423775876,1780417840000,-500.0,0.00013698,2]
[423775878,1780417840000,-500.0,0.00013698,2]
[423775871,1780417840000,-500.0,0.00013698,2]
[423775841,1780417840000,-181.31956839,0.0001315,2]
[423775810,1780417840000,-1152.0,0.00012455,2]
[423775836,1780417840000,-500.0,0.0001315,2]
[423775838,1780417840000,-500.0,0.0001315,2]
[423775804,1780417840000,-1024.0,0.00012103,2]
[423775805,1780417840000,-275.0,0.0001211,2]
[423775803,1780417840000,-5564.24,0.00012087,2]
[423775807,1780417840000,-3679.63438657,0.0001221,2]
[423775806,1780417840000,-289.223889,0.00012123,2]
[423775814,1780417840000,-500.0,0.00012601,2]
[423775815,1780417840000,-821.996379,0.00012635,2]
[423775827,1780417840000,-1883.85,0.00013089,2]
[423775826,1780417840000,-150.99,0.00012893,2]
[423775821,1780417840000,-3679.63438657,0.00012882,2]
[423775819,1780417840000,-14405.93,0.00012757,2]
[423775824,1780417840000,-666.0,0.00012892,2]
[423775825,1780417840000,-3620.11,0.00012893,2]
[423775823,1780417840000,-300.0,0.00012892,2]
[423775801,1780417840000,-6185.81,0.00012087,2]
[423775829,1780417840000,-500.0,0.0001315,2]
[423775842,1780417840000,-150.0,0.0001315,2]
[423775830,1780417840000,-500.0,0.0001315,2]
[423775845,1780417840000,-500.0,0.0001315,2]
[423775839,1780417840000,-500.0,0.0001315,2]
[423775837,1780417840000,-500.0,0.0001315,2]
[423775833,1780417840000,-500.0,0.0001315,2]
[423775840,1780417840000,-500.0,0.0001315,2]
[423775844,1780417840000,-500.0,0.0001315,2]
[423775835,1780417840000,-500.0,0.0001315,2]
[423775834,1780417840000,-500.0,0.0001315,2]
[423775832,1780417840000,-500.0,0.0001315,2]
[423775828,1780417840000,-500.0,0.0001315,2]
[423775831,1780417840000,-500.0,0.0001315,2]
[423775843,1780417840000,-194.79440243,0.0001315,2]
[423775926,1780417841000,-200.0,0.00013699,2]
[423775928,1780417841000,-2500.0,0.00013699,2]
[423775919,1780417841000,-268.15311892,0.00013698,2]
[423775913,1780417841000,-500.0,0.00013698,2]
[423775914,1780417841000,-500.0,0.00013698,2]
[423775912,1780417841000,-500.0,0.00013698,2]
[423775910,1780417841000,-500.0,0.00013698,2]
[423775918,1780417841000,-500.0,0.00013698,2]
[423775909,1780417841000,-500.0,0.00013698,2]
[423775915,1780417841000,-500.0,0.00013698,2]
[423775925,1780417841000,-151.0,0.00013699,2]
[423775939,1780417841000,-164.0,0.0001404,2]
[423775923,1780417841000,-151.0,0.00013699,2]
[423775922,1780417841000,-151.0,0.00013699,2]
[423775924,1780417841000,-151.0,0.00013699,2]
[423775920,1780417841000,-500.0,0.00013698,2]
[423775921,1780417841000,-500.0,0.00013698,2]
[423775938,1780417841000,-173.13,0.00014023,2]
[423775936,1780417841000,-2957.0,0.00014023,5]
[423775934,1780417841000,-166.66,0.00013836,2]
[423775933,1780417841000,-1591.0,0.0001372,2]
[423775935,1780417841000,-166.66,0.00013973,2]
[423775932,1780417841000,-2129.0,0.00013705,2]
[423775907,1780417841000,-500.0,0.00013698,2]
[423775927,1780417841000,-166.66,0.00013699,2]
[423775917,1780417841000,-500.0,0.00013698,2]
[423775896,1780417841000,-666.0,0.00013698,2]
[423775908,1780417841000,-500.0,0.00013698,2]
[423775883,1780417841000,-482.14356954,0.00013698,2]
[423775886,1780417841000,-314.90209196,0.00013698,2]
[423775882,1780417841000,-500.0,0.00013698,2]
[423775885,1780417841000,-500.0,0.00013698,2]
[423775887,1780417841000,-500.0,0.00013698,2]
[423775884,1780417841000,-635.60098635,0.00013698,2]
[423775889,1780417841000,-500.0,0.00013698,2]
[423775899,1780417841000,-500.0,0.00013698,2]
[423775888,1780417841000,-500.0,0.00013698,2]
[423775890,1780417841000,-500.0,0.00013698,2]
[423775891,1780417841000,-500.0,0.00013698,2]
[423775893,1780417841000,-500.0,0.00013698,2]
[423775916,1780417841000,-500.0,0.00013698,2]
[423775931,1780417841000,-6453.0,0.00013701,2]
[423775895,1780417841000,-300.0,0.00013698,2]
[423775894,1780417841000,-217.98222391,0.00013698,2]
[423775897,1780417841000,-500.0,0.00013698,2]
[423775898,1780417841000,-500.0,0.00013698,2]
[423775900,1780417841000,-612.93945237,0.00013698,2]
[423775903,1780417841000,-500.0,0.00013698,2]
[423775901,1780417841000,-500.0,0.00013698,2]
[423775902,1780417841000,-500.0,0.00013698,2]
[423775904,1780417841000,-500.0,0.00013698,2]
[423775905,1780417841000,-500.0,0.00013698,2]
[423775906,1780417841000,-500.0,0.00013698,2]
[423775911,1780417841000,-500.0,0.00013698,2]
[423775892,1780417841000,-500.0,0.00013698,2]
[423775937,1780417841000,-2572.0,0.00014023,5]
[423775929,1780417841000,-2000.0,0.00013699,7]
[423775942,1780417841000,-154.37,0.00014046,2]
[423775975,1780417841000,-694.18132,0.0001485,2]
[423775972,1780417841000,-174.124,0.00014758,2]
[423775971,1780417841000,-1253.775,0.00014758,2]
[423775969,1780417841000,-576.0,0.00014683,2]
[423775974,1780417841000,-694.18131,0.0001485,2]
[423775973,1780417841000,-1473.70804207,0.0001485,2]
[423775970,1780417841000,-6912.88338996,0.000147,2]
[423775981,1780417841000,-300.0,0.00014881,2]
[423775979,1780417841000,-163.0,0.0001488,2]
[423775983,1780417841000,-25000.0,0.00014882,3]
[423775984,1780417841000,-300.0,0.0001489,2]
[423775991,1780417841000,-25000.0,0.000149,3]
[423775968,1780417841000,-1591.0,0.0001468,2]
[423775982,1780417841000,-781.56714637,0.00014881,2]
[423775990,1780417841000,-25000.0,0.000149,3]
[423775988,1780417841000,-23788.05599082,0.000149,2]
[423775986,1780417841000,-1004.66495706,0.00014891,2]
[423775987,1780417841000,-25000.0,0.00014891,3]
[423775985,1780417841000,-10000.0,0.00014891,2]
[423775989,1780417841000,-25000.0,0.000149,3]
[423775993,1780417841000,-1500.0,0.000149,2]
[423775994,1780417841000,-3679.63438657,0.000149,2]
[423775992,1780417841000,-1500.0,0.000149,2]
[423775996,1780417841000,-150.0,0.000149,2]
[423775995,1780417841000,-250.0,0.000149,2]
[423775940,1780417841000,-2319.0,0.0001404,2]
[423775980,1780417841000,-163.0,0.0001488,2]
[423775976,1780417841000,-694.18132,0.0001486,2]
[423775930,1780417841000,-1613.0,0.00013701,2]
[423775977,1780417841000,-200.0,0.00014868,2]
[423775952,1780417841000,-500.0,0.00014496,2]
[423775953,1780417841000,-567.4,0.00014496,2]
[423775943,1780417841000,-166.66,0.0001411,2]
[423775941,1780417841000,-2319.0,0.0001404,2]
[423775946,1780417841000,-6069.0,0.00014184,2]
[423775944,1780417841000,-525.0,0.00014184,2]
[423775948,1780417841000,-3679.63438657,0.00014227,2]
[423775947,1780417841000,-1357.0,0.00014184,2]
[423775951,1780417841000,-166.66,0.00014384,2]
[423775949,1780417841000,-166.66,0.00014247,2]
[423775950,1780417841000,-333.99385625,0.00014281,2]
[423775956,1780417841000,-4940.47,0.00014504,2]
[423775945,1780417841000,-1226.0,0.00014184,2]
[423775955,1780417841000,-982.53,0.00014504,2]
[423775978,1780417841000,-163.0,0.0001488,2]
[423775954,1780417841000,-2741.67,0.00014497,2]
[423775963,1780417841000,-151.0,0.00014658,2]
[423775966,1780417841000,-160.0,0.0001468,2]
[423775962,1780417841000,-350.0,0.00014615,2]
[423775960,1780417841000,-2000.0,0.00014564,2]
[423775967,1780417841000,-1591.0,0.0001468,2]
[423775961,1780417841000,-350.0,0.00014594,2]
[423775958,1780417841000,-152.0,0.00014546,7]
[423775964,1780417841000,-151.0,0.00014658,2]
[423775959,1780417841000,-152.0,0.00014546,7]
[423775957,1780417841000,-152.0,0.00014526,7]
[423775965,1780417841000,-2317.0,0.0001468,2]
[423776003,1780417842000,-348.82689874,0.0001499,2]
[423776012,1780417842000,-804.997936,0.00014991,2]
[423776016,1780417842000,-151.0,0.00014991,2]
[423776008,1780417842000,-151.0,0.00014991,2]
[423776013,1780417842000,-804.997936,0.00014991,2]
[423776011,1780417842000,-151.0,0.00014991,2]
[423776010,1780417842000,-151.0,0.00014991,2]
[423776006,1780417842000,-151.0,0.00014991,2]
[423776015,1780417842000,-804.997936,0.00014991,2]
[423776007,1780417842000,-311.428701,0.00014991,2]
[423776005,1780417842000,-592740.4366325,0.00014991,2]
[423776014,1780417842000,-804.997936,0.00014991,2]
[423776000,1780417842000,-151.0,0.00014988,2]
[423776001,1780417842000,-500.0,0.0001499,2]
[423775998,1780417842000,-1168.4876401,0.0001496,2]
[423775999,1780417842000,-283.7805155,0.0001496,2]
[423776004,1780417842000,-434794.2905568,0.00014991,2]
[423775997,1780417842000,-350.0,0.00014956,2]
[423776009,1780417842000,-151.0,0.00014991,2]
[423776002,1780417842000,-500.0,0.0001499,2]
[423776018,1780417842000,-151.0,0.00014991,2]
[423776017,1780417842000,-151.0,0.00014991,2]
[423776028,1780417842000,-400.0,0.00015,2]
[423776038,1780417842000,-162.37,0.00015,2]
[423776030,1780417842000,-395.61,0.00015,2]
[423776039,1780417842000,-733730.99925585,0.00015,2]
[423776036,1780417842000,-162.36,0.00015,2]
[423776037,1780417842000,-162.36,0.00015,2]
[423776035,1780417842000,-162.36,0.00015,2]
[423776034,1780417842000,-162.36,0.00015,2]
[423776031,1780417842000,-162.36,0.00015,2]
[423776032,1780417842000,-162.36,0.00015,2]
[423776033,1780417842000,-162.36,0.00015,2]
[423776024,1780417842000,-136278.8025688,0.00015,2]
[423776025,1780417842000,-102920.37367604,0.00015,2]
[423776023,1780417842000,-345407.02747436,0.00015,2]
[423776027,1780417842000,-400.0,0.00015,2]
[423776026,1780417842000,-400.0,0.00015,2]
[423776022,1780417842000,-948482.72018926,0.00015,2]
[423776021,1780417842000,-212963.00224454,0.00015,2]
[423776020,1780417842000,-706764.77791996,0.00015,2]
[423776029,1780417842000,-226920.72421312,0.00015,2]
[423776019,1780417842000,-151.0,0.00014997,2]
[423776055,1780417843000,-20994.80599185,0.00015,2]
[423776057,1780417843000,-527.89958997,0.00015,2]
[423776056,1780417843000,-1235.1,0.00015,2]
[423776059,1780417843000,-1091875.63866565,0.00015,2]
[423776060,1780417843000,-2038.53,0.00015,2]
[423776058,1780417843000,-1675270.69514322,0.00015,2]
[423776061,1780417843000,-650.4944148,0.00015,2]
[423776062,1780417843000,-345.88476555,0.00015,2]
[423776066,1780417843000,-5617.7089304,0.00015,2]
[423776064,1780417843000,-301172.43759396,0.00015,2]
[423776063,1780417843000,-5537.42957938,0.000149,2]
[423776065,1780417843000,-66182.45709646,0.00015,2]
[423776085,1780417846000,-484.05,0.00013715,2]
[423776084,1780417846000,-37254.23467082,0.00015,2]
[423776083,1780417846000,-1363.06633013,0.0001345,2]
[423776092,1780418059000,2000.0,0.00028767,120]
[423776093,1780418066000,2000.0,0.00028767,120]
[423776094,1780418074000,2000.0,0.00028767,120]
[423776095,1780418092000,2000.0,0.00028767,120]
[423776096,1780418107000,3119.0,0.00028767,120]
[423776098,1780418199000,280.82813108,9.543e-05,7]
[423776100,1780418200000,280.82813108,9.734e-05,7]
[423776099,1780418200000,189.69740348,9.734e-05,7]
[423776101,1780418219000,152.0,0.00028594,120]
[423776112,1780418612000,152.0,0.00028592,120]
[423776115,1780418941000,2000.0,0.00028766,120]
[423776122,1780418964000,152.0,0.00028618,120]
[423776164,1780418997000,982.81,5.968e-05,2]
[423776166,1780418998000,982.85,5.964e-05,2]
[423776165,1780418998000,982.85,5.966e-05,2]
[423776168,1780418999000,982.85,5.96e-05,2]
[423776167,1780418999000,982.85,5.962e-05,2]
[423776170,1780419000000,982.85,5.966e-05,2]
[423776169,1780419000000,982.85,5.968e-05,2]
[423776171,1780419001000,982.85,5.964e-05,2]
[423776181,1780419032000,-150.0,8.581e-05,2]
[423776180,1780419032000,-150.0,8.581e-05,2]
[423776182,1780419032000,-150.0,8.581e-05,2]
[423776178,1780419032000,-150.0,8.581e-05,2]
[423776175,1780419032000,-807.06237574,8.58e-05,2]
[423776179,1780419032000,-150.0,8.581e-05,2]
[423776183,1780419032000,-150.0,8.581e-05,2]
[423776173,1780419032000,-166.8,8.057e-05,2]
[423776174,1780419032000,-392.93762426,8.58e-05,2]
[423776176,1780419032000,-150.0,8.581e-05,2]
[423776184,1780419032000,-250.0,8.587e-05,2]
[423776177,1780419032000,-150.0,8.581e-05,2]
[423776186,1780419032000,-247.69122639,8.592e-05,2]
[423776187,1780419032000,-500.0,8.592e-05,2]
[423776196,1780419032000,-500.0,8.593e-05,2]
[423776193,1780419032000,-500.0,8.593e-05,2]
[423776192,1780419032000,-548.74165168,8.593e-05,2]
[423776191,1780419032000,-425.5773788,8.593e-05,2]
[423776197,1780419032000,-0.44217855,8.593e-05,2]
[423776189,1780419032000,-559.68677199,8.592e-05,2]
[423776195,1780419032000,-500.0,8.593e-05,2]
[423776188,1780419032000,-486.19124223,8.592e-05,2]
[423776185,1780419032000,-500.0,8.592e-05,2]
[423776194,1780419032000,-500.0,8.593e-05,2]
[423776190,1780419032000,-160.0,8.592e-05,2]
[423776206,1780419036000,249.0,0.00028,120]
[423776233,1780419038000,-150.0,8.619e-05,2]
[423776239,1780419038000,-4816.46400697,8.657e-05,2]
[423776232,1780419038000,-150.0,8.607e-05,2]
[423776236,1780419038000,-150.0,8.645e-05,2]
[423776238,1780419038000,-9432.53599303,8.657e-05,2]
[423776235,1780419038000,-150.0,8.632e-05,2]
[423776237,1780419038000,-150.0,8.649e-05,2]
[423776234,1780419038000,-150.0,8.621e-05,2]
[423776242,1780419038000,-150.0,8.66e-05,2]
[423776259,1780419038000,-150.0,8.717e-05,2]
[423776243,1780419038000,-7439.0,8.67e-05,2]
[423776247,1780419038000,-150.0,8.684e-05,2]
[423776244,1780419038000,-150.0,8.671e-05,2]
[423776246,1780419038000,-4411.0,8.675e-05,2]
[423776245,1780419038000,-402.0,8.674e-05,2]
[423776249,1780419038000,-220.0,8.692e-05,2]
[423776251,1780419038000,-150.0,8.7e-05,2]
[423776255,1780419038000,-1266.0,8.709e-05,2]
[423776231,1780419038000,-150.0,8.605e-05,2]
[423776240,1780419038000,-150.0,8.658e-05,2]
[423776230,1780419038000,-250.0,8.601e-05,2]
[423776212,1780419038000,-500.0,8.593e-05,2]
[423776229,1780419038000,-150.0,8.594e-05,2]
[423776208,1780419038000,-499.55782145,8.593e-05,2]
[423776209,1780419038000,-500.0,8.593e-05,2]
[423776210,1780419038000,-500.0,8.593e-05,2]
[423776217,1780419038000,-500.0,8.593e-05,2]
[423776213,1780419038000,-500.0,8.593e-05,2]
[423776211,1780419038000,-500.0,8.593e-05,2]
[423776248,1780419038000,-8898.0,8.688e-05,2]
[423776214,1780419038000,-500.0,8.593e-05,2]
[423776216,1780419038000,-500.0,8.593e-05,2]
[423776225,1780419038000,-500.0,8.593e-05,2]
[423776215,1780419038000,-500.0,8.593e-05,2]
[423776219,1780419038000,-500.0,8.593e-05,2]
[423776220,1780419038000,-363.00211527,8.593e-05,2]
[423776222,1780419038000,-500.0,8.593e-05,2]
[423776221,1780419038000,-500.0,8.593e-05,2]
[423776226,1780419038000,-500.0,8.593e-05,2]
[423776228,1780419038000,-500.0,8.593e-05,2]
[423776224,1780419038000,-500.0,8.593e-05,2]
[423776223,1780419038000,-500.0,8.593e-05,2]
[423776227,1780419038000,-500.0,8.593e-05,2]
[423776218,1780419038000,-500.0,8.593e-05,2]
[423776253,1780419038000,-336.0,8.702e-05,2]
[423776241,1780419038000,-150.0,8.66e-05,2]
[423776252,1780419038000,-150.0,8.7e-05,2]
[423776277,1780419038000,-1005.0,8.779e-05,2]
[423776279,1780419038000,-150.0,8.785e-05,2]
[423776283,1780419038000,-150.0,8.8e-05,2]
[423776280,1780419038000,-150.0,8.787e-05,2]
[423776282,1780419038000,-1986.0,8.796e-05,2]
[423776286,1780419038000,-150.0,8.819e-05,2]
[423776289,1780419038000,-150.0,8.819e-05,2]
[423776291,1780419038000,-150.0,8.819e-05,2]
[423776297,1780419038000,-150.0,8.839e-05,2]
[423776293,1780419038000,-150.0,8.826e-05,2]
[423776299,1780419038000,-1951.0,8.848e-05,2]
[423776307,1780419038000,-758.102208,8.864e-05,2]
[423776301,1780419038000,-150.0,8.851e-05,2]
[423776304,1780419038000,-150.0,8.853e-05,2]
[423776309,1780419038000,-150.0,8.864e-05,2]
[423776311,1780419038000,-1194.0,8.866e-05,2]
[423776306,1780419038000,-150.0,8.859e-05,2]
[423776315,1780419038000,-849.0,8.883e-05,2]
[423776313,1780419038000,-150.0,8.877e-05,2]
[423776317,1780419038000,-150.0,8.89e-05,2]
[423776258,1780419038000,-150.0,8.71e-05,2]
[423776278,1780419038000,-150.0,8.779e-05,2]
[423776281,1780419038000,-431.0,8.789e-05,2]
[423776295,1780419038000,-1878.0,8.831e-05,2]
[423776275,1780419038000,-156.0,8.772e-05,2]
[423776256,1780419038000,-297.0,8.709e-05,2]
[423776285,1780419038000,-610.0,8.814e-05,2]
[423776254,1780419038000,-2538.0,8.705e-05,2]
[423776250,1780419038000,-150.0,8.697e-05,2]
[423776257,1780419038000,-500.0,8.709e-05,2]
[423776261,1780419038000,-463.0,8.72e-05,2]
[423776264,1780419038000,-1292.0,8.727e-05,2]
[423776262,1780419038000,-150.0,8.723e-05,2]
[423776271,1780419038000,-150.0,8.748e-05,2]
[423776270,1780419038000,-272.0,8.744e-05,2]
[423776263,1780419038000,-464.0,8.726e-05,2]
[423776267,1780419038000,-150.0,8.74e-05,2]
[423776268,1780419038000,-150.0,8.74e-05,2]
[423776269,1780419038000,-1440.0,8.744e-05,2]
[423776265,1780419038000,-150.0,8.735e-05,2]
[423776272,1780419038000,-490.0,8.754e-05,2]
[423776266,1780419038000,-449.0,8.737e-05,2]
[423776274,1780419038000,-397.0,8.762e-05,2]
[423776284,1780419038000,-150.0,8.813e-05,2]
[423776276,1780419038000,-150.0,8.774e-05,2]
[423776273,1780419038000,-150.0,8.761e-05,2]
[423776382,1780419039000,-691.0,9.022e-05,2]
[423776393,1780419039000,-150.0,9.058e-05,2]
[423776395,1780419039000,-150.0,9.058e-05,2]
[423776401,1780419039000,-150.0,9.058e-05,2]
[423776403,1780419039000,-150.0,9.058e-05,2]
[423776384,1780419039000,-150.0,9.032e-05,2]
[423776386,1780419039000,-1186.0,9.04e-05,2]
[423776389,1780419039000,-150.0,9.045e-05,2]
[423776380,1780419039000,-150.0,9.019e-05,2]
[423776405,1780419039000,-150.0,9.07e-05,2]
[423776391,1780419039000,-870.0,9.057e-05,2]
[423776407,1780419039000,-1160.0,9.074e-05,2]
[423776425,1780419039000,-150.0,9.126e-05,2]
[423776399,1780419039000,-150.0,9.058e-05,2]
[423776409,1780419039000,-150.0,9.083e-05,2]